Cogmind - Beta 17 @@@ ROGUE MODE // 2026.07.07 @ 14:50:17 Player: ldi (hl). (hl) Result: Destroyed by 2M-U1N(j) with Overtuned Pulse Rifle Performance ------------- Evolutions (0) 0 Regions Visited (3) 600 Robots Destroyed (8) 40 Value Destroyed (349) 349 Prototype IDs (7) 140 Alien Tech Used (0) 0 Bonus (1617) 1617 TOTAL SCORE: 2746 Bonus ------- Follower Combat Kills 817 Registered with UFD 300 Met Optimus in HQ 500 Cogmind --------- Core Integrity 0/250 Matter 300/300 Energy 56/100 System Corruption 7% Temperature Warning (368) Movement Walking (100) Location -8/Scraptown Parts ------- > --- POWER (1) -------- (None) > --- PROPULSION (2) --- Overtuned Titanium Leg Overtuned Titanium Leg > --- UTILITY (2) ------ Makeshift Light Armor Plating > --- WEAPON (2) ------- Field Laser Overtuned Coil Gun > --- INVENTORY (5) ---- Aluminum Leg Improved Propulsion Shielding Overtuned Beamcaster Overtuned Beamcaster Overtuned Barrage Gun Peak State ------------ > --- POWER ------------ Light Ion Engine > --- PROPULSION ------- Overtuned Titanium Leg Overtuned Titanium Leg > --- UTILITY ---------- Makeshift Microdissipator Network Makeshift Light Armor Plating > --- WEAPON ----------- Overtuned Barrage Gun Enhanced Autogun > --- INVENTORY -------- Aluminum Leg Improved Propulsion Shielding Field Laser Overtuned Beamcaster Overtuned Beamcaster [Rating: 23] Favorites ----------- Power Ion Engine Engine Ion Engine Propulsion Aluminum Leg Leg Aluminum Leg Utility Improved Heat Sink Device Improved Heat Sink Protection Improved Propulsion Shielding Weapon Medium Laser Energy Gun Medium Laser Ballistic Gun Light Assault Rifle Build | -11 -10 -10 -8 ------- Run | Yrd Mat Sub Scr Slots Evolved . | . . . . Power . | . . . . Propulsion . | . . . . Utility . | . . . . Weapon . | . . . . Parts Attached 19 | 5 . 1 13 Power 2 | 1 . . 1 Engine 2 | 1 . . 1 Core . | . . . . Reactor . | . . . . Propulsion 4 | 2 . . 2 Treads . | . . . . Leg 4 | 2 . . 2 Wheel . | . . . . Hover . | . . . . Flight . | . . . . Utility 5 | . . 1 4 Device 3 | . . 1 2 Storage . | . . . . Processor . | . . . . Hackware . | . . . . Protection 2 | . . . 2 Artifact . | . . . . Weapon 8 | 2 . . 6 Energy Gun 2 | 1 . . 1 Energy Cannon . | . . . . Ballistic Gun 6 | 1 . . 5 Ballistic Cannon . | . . . . Launcher . | . . . . Special Weapon . | . . . . Impact Weapon . | . . . . Slashing Weapon . | . . . . Piercing Weapon . | . . . . Special Melee Weapon . | . . . . Unidentified Prototypes 1 | . . . 1 Parts Lost 4 | . . . 4 Power 2 | . . . 2 Propulsion . | . . . . Utility 1 | . . . 1 Weapon 1 | . . . 1 Highest Loss Streak 3 | . . . 3 To Critical Strikes . | . . . . Average Backups 3 | . 2 2 3 Power . | . 1 1 . Propulsion 1 | . . . 1 Utility . | . . . . Weapon . | . 1 1 . Tool/Special . | . . . . Unused Backups 5 | . . . 5 Power . | . . . . Propulsion 2 | . . . 2 Utility . | . . . . Weapon 3 | . . . 3 Tool/Special . | . . . . Average Slot Usage (%) 90 | . 71 75 96 Engine 13 | . 14 14 13 Leg 28 | . 28 28 28 Device 10 | . . 4 13 Protection 8 | . . . 11 Energy Gun 12 | . 14 14 12 Ballistic Gun 15 | . 14 14 15 Peak Build Rating 23 | 5 5 8 23 Average Rating 12 | 3 5 5 14 On Entrance 4 | . 5 5 8 Avg Prop Armor Cover (%) 7 | . . . 7 Naked Turns . | . . . . Heaviest Build 18 | 8 8 9 18 Greatest Support 38 | 20 20 20 38 Greatest Overweight (x) 4 | . . . 4 Average Overweight (x) . | . . . . Largest Inventory Capacity 5 | 5 5 5 5 Average Capacity 5 | 5 5 5 5 Most Carried 5 | 2 2 4 5 Average Carried 3 | 1 2 2 4 Final Capacity 5 | 5 5 5 5 Final Carried 5 | 2 2 4 5 Class Distribution -------------------- 90% | Mutant 9% | Scavenger-Mutant Dominant Class ---------------- Mutant | -10/Materials Mutant | -10/Subcaves Mutant | -8/Scraptown Resources | -11 -10 -10 -8 ----------- Run | Yrd Mat Sub Scr Matter Collected 1320 | 179 30 54 1057 Remotely . | . . . . Salvage Created 451 | . . 43 408 Parts 23 | . . 2 21 Haulers Intercepted . | . . . . Recyclers Shooed . | . . . . Parts Field Recycled . | . . . . Retrieved Matter . | . . . . Parts Self-Destructed 8 | . . 8 . Prevented . | . . . . Parts Restored . | . . . . Kills | -11 -10 -10 -8 ------- Run | Yrd Mat Sub Scr Combat Hostiles Destroyed 8 | . . 1 7 Guns 8 | . . 1 7 Classes Destroyed 6 | . . 1 5 Subdweller 1 | . . 1 . Federalist 1 | . . . 1 Explorer 1 | . . . 1 Guru 1 | . . . 1 Scrapper 3 | . . . 3 Thug 1 | . . . 1 Best Kill Streak 3 | . . 1 3 Combat Bots Only 3 | . . 1 3 Max Kills in Single Turn 1 | . . 1 1 Gunslinging . | . . . . Exploded . | . . . . Melee . | . . . . Uniques/NPCs Destroyed . | . . . . Combat | -11 -10 -10 -8 -------- Run | Yrd Mat Sub Scr Hostile Shots Fired 64 | . . . 64 Missed 20 | . . . 20 Hits 44 | . . . 44 Projectile 44 | . . . 44 Critical Strikes 9 | . . . 9 Damage Taken 1236 | . 18 . 1218 Core 256 | . . . 256 Absorbed by Shields . | . . . . Core Remaining (%) 100 | 100 . . . Volleys Fired 38 | . 1 2 35 Largest 2 | . 2 2 2 Hottest 95 | . 70 70 95 Shots Fired 69 | . 2 4 63 Gun 69 | . 2 4 63 Cannon . | . . . . Launcher . | . . . . Special . | . . . . Kinetic 40 | . 1 2 37 Thermal 29 | . 1 2 26 Explosive . | . . . . Electromagnetic . | . . . . Robot Hit Streak 9 | . . 3 9 Robot Miss Streak 2 | . 2 . 2 Penetration Max 1 | . . . 1 Secondary Targets 2 | . . . 2 Max Gunslinging Chain 1 | . . . 1 Shots Hit Robots 45 | . . 3 42 Core Hits 23 | . . 1 22 Critical Kills . | . . . . Critical Parts Destroyed . | . . . . Critical Strikes 2 | . . . 2 Burn 2 | . . . 2 Melee Attacks . | . . . . Impact . | . . . . Slashing . | . . . . Piercing . | . . . . Sneak Attacks . | . . . . Combat Hostiles . | . . . . Follow-up Attacks . | . . . . Damage Inflicted 708 | . . 12 696 Guns 708 | . . 12 696 Cannons . | . . . . Explosions . | . . . . Melee . | . . . . Ramming . | . . . . Kinetic 452 | . . . 452 Thermal 256 | . . 12 244 Explosive . | . . . . Electromagnetic . | . . . . Impact . | . . . . Slashing . | . . . . Piercing . | . . . . Highest Corruption 7 | . . . 7 Average Corruption 7 | . . . 7 Corruption Purged . | . . . . Corruption Blocked . | . . . . Overload Shots . | . . . . Overflow Damage . | . . . . Projectiles . | . . . . Explosions . | . . . . Melee . | . . . . Knockbacks . | . . . . Impact . | . . . . Kinetic . | . . . . Secondary . | . . . . Self-Inflicted Damage . | . . . . Shots . | . . . . Rammed . | . . . . Targets Rammed . | . . . . Kicked . | . . . . Crushed . | . . . . Highest Temperature 356 | . 30 . 356 Average Temperature 89 | . 18 . 90 Received Heat Transfer 492 | . 12 . 480 Siege Activations . | . . . . Martial Activations . | . . . . Shielding Activations . | . . . . Robots Disrupted . | . . . . Combat Hostiles . | . . . . Robots Corrupted . | . . . . Combat Hostiles . | . . . . Parts Fried . | . . . . Impact Corruptions . | . . . . Robots Melted . | . . . . Combat Hostiles . | . . . . Parts Melted 10 | . . 1 9 Heat Transferred 693 | . . 37 656 Parts Sabotaged . | . . . . Parts Stolen . | . . . . Parts Stripped . | . . . . Power Chain Reactions . | . . . . Alert | -11 -10 -10 -8 ------- Run | Yrd Mat Sub Scr Maximum Alert Level . | . . . . Low Security (%) 100 | 100 100 . . Level 1 . | . . . . Level 2 . | . . . . Level 3 . | . . . . Level 4 . | . . . . Level 5 . | . . . . High Security . | . . . . Max Security . | . . . . Peak Influence . | . . . . Initial . | . . . . Average . | . . . . Influence Increases . | . . . . Influence Decreases . | . . . . Squads Dispatched 1 | . 1 . . Investigation . | . . . . Extermination . | . . . . Reinforcement 1 | . 1 . . Assault . | . . . . Garrison . | . . . . Intercept . | . . . . Searches Triggered . | . . . . Construction Impeded . | . . . . Haulers Reinforced . | . . . . Active Scanning Responses . | . . . . Cargo Convoy Interrupts . | . . . . Stealth | -11 -10 -10 -8 --------- Run | Yrd Mat Sub Scr Distress Signals 1 | . 1 . . Communications Jammed . | . . . . Distress Signals . | . . . . Times Spotted 42 | . 5 2 35 Peak Tracking Total 8 | . 3 1 8 Tactical Retreats 1 | . . . 1 Traps | -11 -10 -10 -8 ------- Run | Yrd Mat Sub Scr Traps Triggered . | . . . . Indirectly . | . . . . Trap Hack Attempts . | . . . . Triggered . | . . . . Disarmed . | . . . . Reprogrammed . | . . . . Reused . | . . . . Traps Extracted . | . . . . Installed . | . . . . Triggered . | . . . . Machines | -11 -10 -10 -8 ---------- Run | Yrd Mat Sub Scr Machines Disabled 1 | . . . 1 Max in Single Turn . | . . . . Machines Repaired . | . . . . Machines Dismantled . | . . . . Machines Sabotaged . | . . . . Overloaded Fab Kills . | . . . . Hacking | -11 -10 -10 -8 --------- Run | Yrd Mat Sub Scr Machines Accessed 4 | . . . 4 Terminals . | . . . . Fabricators . | . . . . Repair Stations . | . . . . Recycling Units . | . . . . Scanalyzers . | . . . . Garrison Access . | . . . . Total Hacks 14 | . . . 14 Successful 14 | . . . 14 Failed . | . . . . Catastrophic . | . . . . Database Lockouts . | . . . . Manual . | . . . . Terminals . | . . . . Fabricators . | . . . . Repair Stations . | . . . . Recycling Units . | . . . . Scanalyzers . | . . . . Garrison Access . | . . . . Terminal Hacks 14 | . . . 14 Record 13 | . . . 13 Proto ID Catalog 1 | . . . 1 Fabricator Hacks . | . . . . Repair Station Hacks . | . . . . Recycling Unit Hacks . | . . . . Scanalyzer . | . . . . Garrison Access Hacks . | . . . . Unauthorized Hacks . | . . . . Terminals . | . . . . Fabricators . | . . . . Repair Stations . | . . . . Recycling Units . | . . . . Scanalyzers . | . . . . Garrison Access . | . . . . Data Cores Recovered . | . . . . Used . | . . . . Hacking Detections . | . . . . Full Trace Events . | . . . . Feedback Events . | . . . . Feedback Blocked . | . . . . Robot Schematics Acquired . | . . . . Robots Built . | . . . . Authchips . | . . . . Time . | . . . . Total Robot Build Rating . | . . . . Part Schematics Acquired . | . . . . Parts Built . | . . . . Authchips . | . . . . Time . | . . . . Total Part Build Rating . | . . . . Part Studies Acquired . | . . . . Parts Repaired . | . . . . Time . | . . . . Parts Recycled . | . . . . Recycled Matter . | . . . . Retrieved Matter . | . . . . Retrieved Components . | . . . . Parts Scanalyzed . | . . . . Part Schematics Acquired . | . . . . Parts Damaged . | . . . . Bothacking | -11 -10 -10 -8 ------------ Run | Yrd Mat Sub Scr Used RIF Installer . | . . . . Robots Hacked . | . . . . Non-combat . | . . . . Combat . | . . . . Robot Hacks Applied . | . . . . Relay Couplers Released . | . . . . Fabnet Peak Effective % . | . . . . Robots Rewired . | . . . . Allies Hacked . | . . . . Hacks Repelled . | . . . . Allies | -11 -10 -10 -8 -------- Run | Yrd Mat Sub Scr Total Allies 6 | . . . 6 Largest Group 5 | . . . 5 Highest-Rated Group 241 | . . . 241 Highest-Rated Ally 52 | . . . 52 Total Orders . | . . . . Ally Attacks 127 | . . . 127 Total Damage 2688 | . . . 2688 Kills 25 | . . . 25 Allies Corrupted . | . . . . Allies Melted 7 | . . . 7 Intel | -11 -10 -10 -8 ------- Run | Yrd Mat Sub Scr Active Infowar (turns) . | . . . . Robot Analysis Total . | . . . . Derelict Logs Recovered 1 | . . 1 . Drone Launches . | . . . . Drone Recoveries . | . . . . Exploration | -11 -10 -10 -8 ------------- Run | Yrd Mat Sub Scr Turns Passed 1709 | 70 144 271 1224 Spaces Moved 1201 | 52 118 183 848 Core 15 | 2 . . 13 Treads . | . . . . Legs 1186 | 50 118 183 835 Wheels . | . . . . Hover . | . . . . Flight . | . . . . Fastest Speed 50 | 50 120 120 100 Average Speed 119 | 117 120 120 120 Slowest Speed 250 | 120 120 120 250 Overloaded Moves . | . . . . Propulsion Burnouts . | . . . . Robots Hopped . | . . . . Potential Cave-ins . | . . . . Cave-ins Triggered 1 | . . . 1 Exploration Rate (%) 21 | 3 18 17 47 Regions Visited 3 Branch Regions 2 Pre-discovered Areas . | . . . . Known Exits Taken . | . . . . Unknown Exits Taken 3 | 1 1 1 . Scrap Searched 3 | . . . 3 Spaces Dug . | . . . . Terrain Destroyed 1 | . . . 1 Melee . | . . . . Projectile 1 | . . . 1 AOE . | . . . . Terrain Rammed . | . . . . Walls Destroyed . | . . . . Machines Disabled . | . . . . Actions | -11 -10 -10 -8 --------- Run | Yrd Mat Sub Scr Total 1410 | 58 118 230 1004 Wait 130 | . . 43 87 Move 1198 | 51 117 182 848 Hop . | . . . . Pick Up 10 | 2 . 2 6 Fast Attach 14 | 5 . 1 8 Attach 4 | . . . 4 Detach 1 | . . . 1 Swap 4 | . . . 4 Drop 11 | . . . 11 Fire 38 | . 1 2 35 Melee . | . . . . Ram . | . . . . Kick . | . . . . Crush . | . . . . Escape Stasis . | . . . . Rewire . | . . . . Trap . | . . . . Miscellaneous . | . . . . Route ------- -11/Scrapyard -10/Materials -10/Subcaves -8/Scraptown (discovered 2 exits: Fac x2) History --------- Turn | Location | Event 10 | -11/Scrapyard | Discovered new exit (range 15) 71 | -11/Scrapyard | Entered Materials 72 | -10/Materials | Met a group of wandering Federalists 212 | -10/Materials | Discovered new exit (range 3) 215 | -10/Materials | Entered Subcaves 215 | -10/Subcaves | Accompanied by 2 allies 216 | -10/Subcaves | Continued accompanying wandering Federalists (5) 300 | -10/Subcaves | Build established: Mutant 468 | -10/Subcaves | Wandering Federalist uncovered a shortcut to Scraptown 486 | -10/Subcaves | Entered Scraptown 600 | -8/Scraptown | Visited UFD Registry 600 | -8/Scraptown | Registered with UFD as "Deathtank" 658 | -8/Scraptown | Visited Botcube Research 667 | -8/Scraptown | Found Lrg. Botcube 710 | -8/Scraptown | Visited Science Guys 937 | -8/Scraptown | Visited Derelict Rescue Squad 1058 | -8/Scraptown | Met Optimus 1058 | -8/Scraptown | Accepted into 0bPrime 1167 | -8/Scraptown | Visited DA-N13 Charitable Foundation 1178 | -8/Scraptown | Found DCF Scrap (26 items) 1191 | -8/Scraptown | Lrg. Botcube activated 1209 | -8/Scraptown | Lrg. Botcube completed mutation into treaded form, armed with 3 guns, 1 launcher. 1236 | -8/Scraptown | Visited Scrapoid Pod Storage 1242 | -8/Scraptown | Found Scrapoid Pod 1261 | -8/Scraptown | Civil war broke out across Scraptown 1319 | -8/Scraptown | Lost 6 allies 1416 | -8/Scraptown | Lost 5 allies 1448 | -8/Scraptown | Scrapoid Pod released 08S05-D (x5) 1490 | -8/Scraptown | Identified exit to Factory 1587 | -8/Scraptown | Visited Modified Component R&D 1652 | -8/Scraptown | Lost 6 allies 1696 | -8/Scraptown | Crushed by falling debris 1696 | -8/Scraptown | Core integrity fell below 50% 1699 | -8/Scraptown | Core integrity fell below 20% 1710 | -8/Scraptown | Destroyed by 2M-U1N(j) with Overtuned Pulse Rifle Last Messages --------------- 01697_ 08S05-D destroyed. 01699_ Acquired Ovr. Coil Gun. 01699_ 08S01-D destroyed. 01701_ 08S02-D secures Bolt Gun. 01701_ SZ-4DG(g) destroyed. 01701_ Slug penetrates N5-79F(b). 01703_ WO-RT9(h) destroyed. 01704_ Ovr. Titanium Leg recovered from malfunction. 01704_ Slug penetrates JP-3LG(x). 01704_ Critical hit (Burn: +50). 01707_ Acquired 18 matter. 01708_ Penetrated by Bolt. 01708_ Replica Nuclear Reactor damaged. 01708_ 2T-PA6(j) suffers critical hit (Burn). 01708_ 2T-PA6(j) destroyed. 01709_ 08S03-D heat damages Mak. Salvage Targeting Computer. 01709_ Slug penetrates JP-3LG(x). 01709_ JP-3LG(x) destroyed. 01709_ Slug penetrates 2M-U1N(j). 01710_ Acquired 4 matter. Map ----- +----------------------------------------------------+ | ?????????????????????????????????????????????????? | | ?????????????????????????????????????????????????? | | ?????????????????????????????????????????????????? | | ?????????????????????????????????????????????????? | | ?????????????????????????????????????????????????? | | ???????????????????????????????????????????######? | | ????????????????????????????????????????#### ## ## | | ????????????????????????????????????????#""" " " | | ????????????????????????????????????????#" " " | | ????????????????????????????????????????#" = | | ?????????????????????????##?????????????#" =[ + | | ????????????????????????? ????????????#" | | ????????????????????????? ????????????#" | | ????????????????????????? """??????????#"" | | ???????????"????????????# """" ??????#### | | ???????????" ""????????# " """= #?????#""" != | | ??????????# ""???????# [%![!%!#?????# !=%== | | ???????????" !%???????# [ *%== #?????# [!!* ! | | ???????????" !!%==??????# [=[%![#?????# !%!=% | | ??????????#"!%==! ????## [%?!=%#?????###### [!% | | ?????????## !==#%[;#####;;;;###%;###???????### ![ | | ????????* !%*[%[! [=*=*=%* %[= #???????#" !% | | ????????= x=!bj!!=!![[![!! !*! #???????#" !%!* | | ???????=== !=!g!!%!%!%=%![ !%! #???????# == = | | ??????? %!=[ [%![**==**s!s=![[%== #???#####"[ [ | | ???????=!&[! [[%!!*!%=!=!@%&[!=* #???# *=%!= =* | | ??????????????#########[%#!%==%!! *#???#####" %=%! | | ??????????????????????##![*!*%!/==!#???#" !! | | ???????????????????????#!![!*%!=!!=#???#"" ! | | ???????????????????????##*%s!%!!=%!#???#""" | | ????????????????????????##[%! %!%%=#???#""" | | ????????????????????????##!== %==!%#???#"""" | | ????????????????????????# !!!!%%==!###?#"""" | | ???????????????????????##[!=!*!%%!=""#"#"""" %= | | ???????????????????????# %!!!!!!!!""""#"""" = | | ???? ??????????????## ==%!=[% %!"#?##### ==!! | | ???# #??????????????##=%[ !=!!%###?????#"!%!*% | | ???# #???????????????#![==[!%![######### [*!=[ | | ??? #???????????????#!=[![*=!=%! [=[%=*=% | | ???# #???????????????#[= *===!=! !! %=[![[%! | | ???# #??????????????##! =! ==! !%= ==!=%!%! | | ???# #??????????????# %! =!!=[=! =! =%*=!= | | ???# ################# %!]% !%!! [ ==[! | | ???# %[%![!! * ![%=%= ! [=[!% | | ???# =%!*%[[! !!! !%=!!=*[% | | ???# !=!!%=! % ! % =!=%*[!! | | ???# =!==[= *= !!%! * !=!!= | | #### %=*![!=! %!%=% = !%! %!%! | | [ =!%=!! =! ! #""""# =* * | | [[%!== % #????# | +----------------------------------------------------+ Best States ------------- Heat Dissipation 39 Energy Generation 10 Energy Capacity 250 Matter Stores 300 Matter Capacity 300 Sight Range 16 Terrain Scan Density 10 Armor Coverage 100 Propulsion Shielding 66 Evasion (%) 55 Item Schematics ----------------- None Robot Schematics ------------------ None Fabricated ------------ Nothing Repaired ---------- Nothing Studied --------- None Alien Tech Used ----------------- None Achievements -------------- Frankenstein Strength In Numbers Challenges ------------ None Game ------ Seed ChaosReflectiveBiocell Manual? 0 Play Time 00:22:23 Cumulative 663.4 hours Start 2026.07.07 @ 14:31:10 End 2026.07.07 @ 14:50:17 Sessions 1 Manual Loads 0 Difficulty Rogue Special Mode None Game No. 441 Rogue 441 Adventurer 0 Explorer 0 Win Type - Total 38 Types 25/1/6/6/0/0/0/0/0/0 Lore% 73 Gallery% 70 Achievement% 52 Wizard Run 0 Options --------- Layout 0 ASCII 1 Keyboard 0 Movement Numpad Keybinds 0 Fullscreen 2 Font 24/Smallcaps Map View 76x50 Zoom Use 0% Tactical HUD 1 Map Filters NONE Filters NONE Steam 1 RUN: 594edb30-c476-4dba-9163-7cb0bb8b26cf